[Event "Polish Youth B18 Championship 2023"]
[Site "Jastrzebia Gora"]
[Date "2023.03.17"]
[Round "7.3"]
[White "Chyzy, Jakub"]
[Black "Kaliszuk, Kamil"]
[Result "0-1"]
[ECO "C11"]
[WhiteElo "2250"]
[BlackElo "2217"]
[Annotator "TA"]
[PlyCount "92"]
[EventDate "2023.03.11"]
[EventType "swiss"]
[EventCountry "POL"]
[SourceTitle "playchess.com"]
[Source "ChessBase"]
[SourceQuality "1"]
[TimeControl "40/5400+30:1800+30"]

{[%evp 17,92,-38,-33,-82,-77,-138,-104,-150,-151,-178,-147,-170,-159,-132,-22,-71,-90,-128,-56,-138,-129,-121,0,0,0,0,17,0,139,118,209,210,212,232,203,206,265,269,304,235,331,267,239,252,446,443,441,418,351,282,494,104,96,-49,-33,-168,-168,-168,-134,-252,-252,-381,-349,-422,-180,-178,-145,-354,-354,-352,-349,-342,-342,-29974,-29975,-5902,-5045]} 1. e4 {[%emt 0:00:01]} e6 {[%emt 0:00:12]} 2. Nf3 {[%emt 0:01:12]} d5 {[%emt 0:00:30]} 3. Nc3 {[%emt 0:00:01]} Nf6 {[%emt 0:03:36]} 4. e5 {[%emt 0:00:04]} Nfd7 {[%emt 0:00:12]} 5. d4 {[%emt 0:00:03]} c5 {[%emt 0:01:01]} 6. dxc5 {[%emt 0:00:13]} Nc6 {[%emt 0:01:26]} 7. Bf4 {[%emt 0:00:14]} Bxc5 {[%emt 0:01:09]} 8. Bd3 {[%emt 0:00:10]} h6 {[%emt 0:02:49]} 9. O-O {[%emt 0:00:15]} a6 {[%emt 0:04:58]} 10. a3 {[%emt 0:02:57] C11: French: Classical System: 4 e5 and 4 Bg5 dxe4.} (10. Bg3 $15) 10... g5 $17 {[%emt 0:07:46]} 11. Bg3 {[%emt 0:00:37]} (11. b4 $142) 11... g4 {[%emt 0:07:19]} 12. Nd2 {[%emt 0:06:44] [#]} (12. Bh4 $142 Be7 13. Bxe7 Qxe7 14. Nd2) 12... h5 $146 {[%emt 0:09:32]} (12... Ncxe5 13. Qe2 Qg5 14. Rae1 Nxd3 15. Qxd3 $11) (12... Ndxe5 13. Nb3 Bb6 14. Re1 $17) ({Predecessor:} 12... Qg5 13. Nb3 Ba7 14. Re1 h5 15. Qc1 Qxc1 16. Raxc1 Bb8 17. Nxd5 exd5 18. e6 Nde5 19. exf7+ Kxf7 {½-½ Pesola,J-Pirttilahti,J FIN-chT1B 9900 1999}) 13. Nb3 {[%emt 0:16:43]} Ba7 {[%emt 0:04:45]} 14. Qd2 {[%emt 0:00:47]} Ndxe5 {[%emt 0:13:58]} (14... Ncxe5 15. Rae1 f6 16. Bh4 $15) 15. Rae1 {[%emt 0:08:54]} Nc4 {[%emt 0:15:32]} (15... f6 $17 {Hoping for ...h4.} 16. Kh1 Bd7) 16. Qc1 {[%emt 0:03:10]} (16. Bxc4 $11 {is more appropriate.} dxc4 17. Qxd8+ Kxd8 18. Bh4+ Kc7 19. Nd2) 16... h4 {[%emt 0:05:23]} 17. Bf4 {[%emt 0:00:36] [#]} g3 {[%emt 0:04:07]} 18. hxg3 {[%emt 0:03:52]} (18. Bxc4 $1 $15 gxf2+ 19. Rxf2 Bxf2+ 20. Kxf2 dxc4 21. Nd2) 18... hxg3 {[%emt 0:00:05]} 19. Bxg3 {[%emt 0:00:10]} Bb8 {[%emt 0:01:10]} (19... b5 $1 $17 20. Qf4 Kf8 21. Bxc4 (21. Bg6 $2 f5 $19) 21... bxc4 22. Qd6+ Qxd6 23. Bxd6+ Kg7) 20. Bxc4 $11 {[%emt 0:06:54]} dxc4 {[%emt 0:02:19]} 21. Nd2 {[%emt 0:00:17]} Qg5 {[%emt 0:08:29]} (21... Bxg3 22. fxg3 e5 23. Rf2 $16 (23. Nxc4 Qd4+ 24. Ne3 Bg4 $14)) 22. Bxb8 {[%emt 0:11:28]} (22. Nxc4 $2 Qh5 23. f4 Ba7+ 24. Re3 Ne7 $17) (22. Nde4 {simplifies} Qxc1 23. Rxc1 b5 24. Rce1) 22... Qh5 {[%emt 0:01:31]} (22... Rxb8 $11 23. Nxc4 Qh4) 23. f4 $1 $16 {[%emt 0:05:05]} Qh2+ {[%emt 0:01:26]} (23... Rxb8 $16 24. Nf3 Qc5+ 25. Qe3 Qxe3+ 26. Rxe3 b5) 24. Kf2 $18 {[%emt 0:00:05]} Qh4+ {[%emt 0:00:05]} (24... Rxb8 $2 25. Rh1 (25. Nxc4 Qh4+ 26. Ke3 e5 $16) 25... Qxf4+ 26. Nf3 Qxc1 27. Rxh8+ (27. Rxc1 Rxh1 28. Rxh1 b5 $15) 27... Ke7 28. Rxc1 $18) 25. g3 $1 {[%emt 0:00:15]} Qh2+ {[%emt 0:00:29]} 26. Ke3 {[%emt 0:00:06]} Rxb8 {[%emt 0:00:39]} 27. Nf3 $1 {[%emt 0:07:38]} Qh6 {[%emt 0:00:32]} (27... Qxg3 $2 28. Rg1 Qh3 29. Rh1 $18) 28. Rh1 {[%emt 0:00:17]} Qg7 {[%emt 0:00:06]} (28... Qf8 {keeps fighting.} 29. Kf2 f5) 29. Rxh8+ {[%emt 0:00:12]} Qxh8 {[%emt 0:00:02]} 30. Rh1 {[%emt 0:00:19]} Qg7 {[%emt 0:00:08]} (30... Qf8 {is a better defense.} 31. Kf2 b6) 31. Ne4 {[%emt 0:00:07][%cal Oh1h7]} Ne7 {[%emt 0:02:33] Black is weak on the dark squares} 32. Kf2 {[%emt 0:03:25]} Nd5 {[%emt 0:00:50]} 33. Ne5 {[%emt 0:13:25]} Bd7 $2 {[%emt 0:01:02]} (33... f6 {was necessary.}) 34. Nd6+ $2 {[%emt 0:01:33]} ({Less strong is} 34. Nxc4 Qd4+ 35. Ne3 (35. Kf3 Bc6 $14) 35... Nxf4 $14) (34. Ng5 $18 f6 35. Rh7 (35. Nxc4 $2 {too greedy.} fxg5 36. Qd1 gxf4 $19) 35... Qxh7 36. Nxh7 fxe5 37. fxe5) 34... Ke7 $16 {[%emt 0:00:08]} 35. Ndxf7 {[%emt 0:00:57] A dynamic duo of knights.} (35. Ndxc4 $16 {Black must now prevent Ne3.} Rc8 36. Qd1) 35... Rf8 $15 {[%emt 0:00:43] Really sharp!} 36. c3 {[%emt 0:03:47]} (36. Qd1 $1 $15) 36... Rxf7 $19 {[%emt 0:00:14]} 37. Nxf7 {[%emt 0:00:02]} Qxf7 {[%emt 0:00:43]} 38. Qc2 {[%emt 0:00:22] [#]} (38. Qf1 $17) 38... Nf6 $1 {[%emt 0:00:37]} 39. Qe2 {[%emt 0:05:32]} (39. Rh4 {was called for.}) 39... Bc6 {[%emt 0:00:26]} 40. Rh4 {[%emt 0:00:00][%cal Of4f5]} Ne4+ {[%emt 0:00:00]} (40... Qg6 $142 {( -> ...Ne4+)} 41. f5 Qxf5+ 42. Rf4 Qb1 43. Rxc4 Bb5 44. Rc7+ Kd6) 41. Ke1 {[%emt 0:01:34]} Nxg3 {[%emt 0:13:59]} 42. Qxc4 {[%emt 0:22:40] This costs White the game.} (42. Qe5 $17 Qg6 43. Qg5+ Qxg5 44. fxg5) 42... Qf5 {[%emt 0:04:25]} 43. Kd2 {[%emt 0:02:42]} Qb1 {[%emt 0:01:55]} 44. Qb4+ {[%emt 0:06:28] [#]} Kf7 $1 {[%emt 0:00:32]} 45. c4 $2 {[%emt 0:00:36]} (45. f5 $19 Nxf5 46. Rh8) 45... Ne4+ {[%emt 0:01:15]} 46. Ke3 {[%emt 0:00:07]} Qg1+ {[%emt 0:00:32] Weighted Error Value: White=0.58/Black=0.45} 0-1

[Event "Polish Youth B18 Championship 2023"]
[Site "Jastrzebia Gora"]
[Date "2023.03.17"]
[Round "7.4"]
[White "Kacprzak, Karol"]
[Black "Kacprzak, Kacper"]
[Result "1/2-1/2"]
[ECO "E16"]
[WhiteElo "2221"]
[BlackElo "2248"]
[Annotator "TA"]
[PlyCount "56"]
[EventDate "2023.03.11"]
[EventType "swiss"]
[EventCountry "POL"]
[SourceTitle "playchess.com"]
[Source "ChessBase"]
[SourceQuality "1"]
[TimeControl "40/5400+30:1800+30"]

{[%evp 25,56,20,30,0,0,0,0,0,11,4,0,-19,-10,-36,-26,-29,0,0,0,-5,10,8,0,0,12,0,0,0,18,0,1,0,22]} 1. d4 {[%emt 0:00:53]} Nf6 {[%emt 0:00:36]} 2. c4 {[%emt 0:00:18]} e6 {[%emt 0:00:05]} 3. Nf3 {[%emt 0:00:10]} Bb4+ {[%emt 0:00:51]} 4. Bd2 {[%emt 0:01:26]} Qe7 {[%emt 0:00:29]} 5. g3 {[%emt 0:01:05]} Nc6 {[%emt 0:03:23]} 6. Bg2 {[%emt 0:01:47]} Bxd2+ {[%emt 0:01:15]} 7. Nbxd2 {[%emt 0:01:06]} d6 {[%emt 0:02:33]} 8. O-O {[%emt 0:02:57]} O-O {[%emt 0:02:28]} 9. e4 {[%emt 0:05:55]} e5 {[%emt 0:04:36]} 10. d5 {[%emt 0:00:51]} Nb8 {[%emt 0:00:25]} 11. Ne1 {[%emt 0:02:48]} a5 {[%emt 0:02:40]} 12. Nd3 {[%emt 0:02:11]} Na6 {[%emt 0:01:50]} 13. a3 {[%emt 0:02:09]} c6 {[%emt 0:02:45] is the legacy move (13...Bg4).} 14. b4 {[%emt 0:01:41] E11: Bogo-Indian.} cxd5 {[%emt 0:01:57]} 15. cxd5 {[%emt 0:01:35]} ({Much weaker is} 15. bxa5 d4 16. Qe2 Nc5 17. Nxc5 dxc5 $17) ({But not} 15. exd5 Bf5 16. Qb3 Bxd3 17. Qxd3 axb4 18. axb4 Nxb4 $17) 15... axb4 {[%emt 0:02:02]} 16. axb4 {[%emt 0:00:21]} Bg4 {[%emt 0:01:35]} 17. f3 {[%emt 0:04:03]} Bd7 {[%emt 0:00:17]} 18. Qb3 {[%emt 0:01:42]} Nc7 {[%emt 0:02:08]} 19. Nc4 {[%emt 0:02:28]} Nb5 {[%emt 0:01:52]} 20. Qb2 {[%emt 0:01:14] [#]} Rfc8 $146 {[%emt 0:05:21] [#] Hoping for ...Rxa1.} ({Predecessor:} 20... Rxa1 21. Rxa1 Ne8 22. Na5 Nd4 23. Nc1 f5 24. Ne2 fxe4 25. Nxd4 exd4 26. Re1 Qd8 27. Rxe4 {1-0 Gordon,S (2490)-Palac,M (2568) EU-ch 8th Dresden 2007 (8)}) 21. Rxa8 {[%emt 0:00:36] The position is equal.} Rxa8 {[%emt 0:00:09]} 22. Ra1 {[%emt 0:00:14]} Qd8 {[%emt 0:00:47]} 23. Rxa8 {[%emt 0:02:21]} Qxa8 {[%emt 0:00:08]} 24. Bf1 {[%emt 0:00:25]} Qa7+ {[%emt 0:00:40]} 25. Qf2 {[%emt 0:00:55]} Qa1 {[%emt 0:01:44]} 26. Qb2 {[%emt 0:00:55]} Qa7+ 27. Qf2 {[%emt 0:00:28] [#] Strongly threatening Qxa7.} Qa1 {[%emt 0:00:25]} 28. Qb2 {[%emt 0:00:06]} Qa7+ {[%emt 0:00:45] Not much happened in this game.   Weighted Error Value: White=0.08 (flawless) /Black=0.05 (flawless)} 1/2-1/2

[Event "Polish Youth B18 Championship 2023"]
[Site "Jastrzebia Gora"]
[Date "2023.03.17"]
[Round "7.5"]
[White "Ciszewski, Krzysztof"]
[Black "Luberanski, Jakub"]
[Result "1/2-1/2"]
[ECO "D44"]
[WhiteElo "2047"]
[BlackElo "2242"]
[Annotator "TA"]
[PlyCount "103"]
[EventDate "2023.03.11"]
[EventType "swiss"]
[EventCountry "POL"]
[SourceTitle "playchess.com"]
[Source "ChessBase"]
[SourceQuality "1"]
[TimeControl "40/5400+30:1800+30"]

{[%evp 30,103,51,21,28,9,15,8,13,6,10,-355,-339,-357,-352,-346,-169,-167,-146,-500,-477,-448,-285,-356,-221,-180,-189,-188,-177,-235,-10,-53,0,0,0,0,0,0,0,0,0,0,0,0,96,0,0,18,114,0,0,0,0,0,0,0,61,0,0,0,266,630,522,250,1268,1167,1184,972,1089,0,0,0,0,0,0,0]} 1. d4 {[%emt 0:00:16]} d5 {[%emt 0:02:21]} 2. c4 {[%emt 0:00:09]} c6 {[%emt 0:00:09]} 3. Nc3 {[%emt 0:00:08]} Nf6 {[%emt 0:00:17]} 4. Nf3 {[%emt 0:00:08]} e6 {[%emt 0:00:03]} 5. Bg5 {[%emt 0:00:48]} dxc4 {[%emt 0:00:10]} 6. e4 {[%emt 0:04:30]} b5 {[%emt 0:00:05]} 7. e5 {[%emt 0:00:36]} h6 {[%emt 0:00:04]} 8. Bh4 {[%emt 0:00:05]} g5 {[%emt 0:00:04]} 9. Nxg5 {[%emt 0:00:11]} hxg5 {[%emt 0:00:03]} 10. Bxg5 {[%emt 0:00:08]} Nbd7 {[%emt 0:00:03]} 11. exf6 {[%emt 0:00:43]} Bb7 {[%emt 0:00:04]} 12. g3 {[%emt 0:11:17]} c5 {[%emt 0:00:24]} 13. d5 {[%emt 0:00:09]} Qb6 {[%emt 0:00:04]} 14. Bg2 {[%emt 0:01:06]} O-O-O {[%emt 0:00:07]} 15. O-O {[%emt 0:00:05]} b4 {[%emt 0:00:03]} 16. Na4 {[%emt 0:03:58]} (16. Rb1 {keeps more tension.} Qa6 17. dxe6 Bxg2 18. e7) 16... Qa6 {[%emt 0:00:05] D44: Semi-Slav: Botvinnik System.} 17. b3 {[%emt 0:11:35]} c3 {[%emt 0:25:46] ...Bxd5 is the strong threat.} 18. a3 $1 {[%emt 0:08:43]} Bxd5 $1 {[%emt 0:02:54]} 19. Bxd5 {[%emt 0:03:50]} Ne5 {[%emt 0:01:17] [#]} (19... exd5 $2 20. Qxd5 Qb7 21. Qxf7 $16) 20. Qc2 $146 {[%emt 0:13:34][%mdl 8192]} ({Predecessor:} 20. axb4 Rxd5 21. Nxc3 Rxd1 22. Rxa6 Rd3 23. Rc1 Kb7 24. b5 Nf3+ 25. Kf1 Rxh2 26. Ke2 Rxc3 27. Rxc3 Nd4+ 28. Kd3 Nxb5 29. Ra2 Nxc3 30. Kxc3 Bh6 {½-½ Relyea,A (2283)-Boada Marti,M (2280) WS TT/4/19/fin email 2020}) 20... Rxd5 $19 {[%emt 0:06:00]} 21. Qe4 {[%emt 0:03:06] Repels Nf3+} Qd3 {[%emt 0:04:05]} 22. Qxd3 {[%emt 0:00:18]} Nxd3 {[%emt 0:01:46]} (22... Rxd3 $142 23. Kg2 c4 24. axb4 cxb3) 23. Be3 {[%emt 0:00:09]} Rd7 {[%emt 0:16:48]} 24. Rfd1 $2 {[%emt 0:01:45][%mdl 8192]} (24. Ra2 $17) 24... Bh6 {[%emt 0:02:13]} 25. f4 {[%emt 0:01:43]} (25. Nxc5 Nxc5 26. Rxd7 (26. Bxc5 $2 Rxd1+ 27. Rxd1 c2 $19) 26... Nxd7 $19) 25... Rhd8 {[%emt 0:00:31]} 26. Rf1 {[%emt 0:11:48]} Bf8 {[%emt 0:15:07]} 27. h4 {[%emt 0:02:08]} Kb7 {[%emt 0:00:48]} 28. g4 {[%emt 0:04:26]} Kc6 {[%emt 0:00:23]} 29. g5 {[%emt 0:02:23] [#]} (29. axb4 $142 cxb4 30. g5) 29... Rd4 $2 {[%emt 0:05:33]} 30. Bxd4 $11 {[%emt 0:01:03]} Rxd4 {[%emt 0:00:04]} (30... cxd4 $15 31. Rad1 Nc5 32. axb4 Nxa4 33. bxa4 Bxb4) 31. axb4 {[%emt 0:04:17]} cxb4 {[%emt 0:00:08]} 32. Rad1 {[%emt 0:02:27]} c2 {[%emt 0:04:57]} 33. Rd2 {[%emt 0:00:27]} c1=Q {[%emt 0:00:06]} (33... Ne1 $2 34. Rxd4 $18) 34. Rxc1+ {[%emt 0:00:04]} Nxc1 {[%emt 0:00:05]} 35. Rc2+ {[%emt 0:00:55]} Kd5 {[%emt 0:03:05]} 36. Rxc1 {[%emt 0:01:16]} Rxf4 {[%emt 0:00:46][%mdl 4096] Endgame KRB-KRN} (36... Bd6 $1 $11) 37. Rc7 {[%emt 0:00:56]} (37. Rc4 $1 $16 {[%cal Rc4f4]} Rxc4 38. bxc4+ Ke4 39. h5) 37... Rxh4 {[%emt 0:01:34]} 38. Rxf7 {[%emt 0:00:15]} Rg4+ {[%emt 0:00:32]} (38... Bd6 $1 $11) 39. Kf2 {[%emt 0:00:47] White has more active pieces.} ({White should try} 39. Kh1 $16 Bd6 40. Rxa7) 39... Bd6 {[%emt 0:00:05]} 40. Rxa7 {[%emt 0:00:00] Threatens to win with Ra5+.} e5 $1 {[%emt 0:00:00]} 41. Rg7 {[%emt 0:06:30]} Ke6 {[%emt 0:02:25]} 42. Kf3 {[%emt 0:05:11]} Kf5 {[%emt 0:01:33]} (42... Rf4+ $11 43. Ke2 Re4+ 44. Kf3 Rf4+ 45. Ke3 Rg4) 43. f7 {[%emt 0:02:26]} (43. Rd7 $14 Rf4+ 44. Kg3) 43... e4+ {[%emt 0:00:56]} 44. Kf2 {[%emt 0:02:02]} (44. Ke3 $5 Rg3+ $8 45. Ke2 $14) 44... Rf4+ $2 {[%emt 0:11:51][%mdl 8192]} (44... Rg3 $1 $11) 45. Ke2 $18 {[%emt 0:02:14]} Rf3 {[%emt 0:01:04]} 46. g6 {[%emt 0:01:29]} (46. Rg8 $142 Rxb3 47. g6 (47. f8=R+ Bxf8 48. Rxf8+ Kxg5 $14) (47. f8=B Bf4 $11)) 46... Rxb3 $2 {[%emt 0:00:31]} (46... Rg3 47. Rg8 Rg2+ 48. Ke3 Rxg6 49. f8=Q+ Bxf8 50. Rxf8+ Ke5) 47. Rg8 $1 {[%emt 0:00:58]} Kf6 {[%emt 0:00:13] [#]} 48. Nb6 $1 (48. f8=R+ Bxf8 49. Rxf8+ Kxg6 $14) 48... Rf3 {[%emt 0:06:14] [#]} 49. Nd5+ $2 {[%emt 0:04:48]} ({Weaker is} 49. f8=R+ Bxf8 50. Rxf8+ Kxg6 $11) (49. Nc4 $1 $18 {[%cal Rc4d6]} Bc5 50. Ne5 (50. f8=R+ Bxf8 51. Rxf8+ Kxg6 $14) 50... Re3+ 51. Kd2 Rd3+ 52. Nxd3 e3+ 53. Ke2) 49... Kg5 $11 {[%emt 0:01:19] The position is equal.} 50. Rd8 {[%emt 0:03:44] Really sharp!} Kxg6 {[%emt 0:00:31]} 51. Rxd6+ {[%emt 0:00:08]} Kxf7 {[%emt 0:00:04]} 52. Nxb4 {[%emt 0:00:10] Weighted Error Value: White=0.64/Black=0.46} 1/2-1/2

[Event "Polish Youth B18 Championship 2023"]
[Site "Jastrzebia Gora"]
[Date "2023.03.17"]
[Round "7.6"]
[White "Backiel, Hubert"]
[Black "Wojdak, Jan"]
[Result "1-0"]
[ECO "B12"]
[WhiteElo "2127"]
[BlackElo "2097"]
[Annotator "TA"]
[PlyCount "99"]
[EventDate "2023.03.11"]
[EventType "swiss"]
[EventCountry "POL"]
[SourceTitle "playchess.com"]
[Source "ChessBase"]
[SourceQuality "1"]
[TimeControl "40/5400+30:1800+30"]

{[%evp 10,99,23,25,44,22,30,26,64,0,27,31,27,25,28,27,37,-7,0,0,0,0,0,0,0,-18,2,-10,58,57,54,40,55,50,83,47,183,120,117,13,13,23,23,6,21,20,364,351,527,515,668,631,713,713,713,713,763,763,1505,333,620,391,723,377,406,350,859,586,904,902,893,730,678,0,866,428,29975,29976,29981,29982,29990,4682,1691,1443,1843,1680,1988,2157,2000,1592,1201,1082]} 1. e4 {[%emt 0:03:02]} c6 {[%emt 0:00:26]} 2. d4 {[%emt 0:00:04]} d5 {[%emt 0:00:07]} 3. e5 {[%emt 0:00:01]} Bf5 {[%emt 0:00:09]} 4. Nf3 {[%emt 0:00:04]} e6 {[%emt 0:00:37]} 5. Be2 {[%emt 0:00:03]} Nd7 {[%emt 0:00:18]} 6. O-O {[%emt 0:00:03]} a5 {[%emt 0:03:42] B12: Caro-Kann: Advance Variation.} 7. c3 {[%emt 0:08:23]} a4 {[%emt 0:03:09]} 8. Nbd2 {[%emt 0:03:32][%cal Bb1d2,Bd2f1,Bf1g3,Bg3h5,Bh5f4][%mdl 32]} f6 {[%emt 0:03:30] White has an edge.} 9. exf6 {[%emt 0:14:46]} (9. b4 $14) 9... Qxf6 {[%emt 0:09:48]} 10. Re1 {[%emt 0:01:12]} Bd6 {[%emt 0:00:39]} 11. Nf1 {[%emt 0:02:57]} Ne7 {[%emt 0:04:51][%cal Bg8e7,Be7g6,Bg6f4][%mdl 32] [#]} 12. Ng3 $146 {[%emt 0:05:19]} ({Predecessor:} 12. Bg5 Qf7 13. Bh4 Ng6 14. Ng5 Qf6 15. Ne4 Qf8 16. Nxd6+ Qxd6 17. Bg3 Qe7 18. Bg4 {½-½ Vachier Lagrave,M (2736)-Mitrabha,G (2510) Chessable Masters Play In rapid 2023 (1)}) 12... h6 {[%emt 0:02:49] Against Bg5} 13. Nh5 {[%emt 0:19:23]} Qf7 {[%emt 0:00:14]} 14. Bf4 {[%emt 0:00:01]} Bxf4 {[%emt 0:01:33]} 15. Nxf4 {[%emt 0:00:03]} g5 {[%emt 0:06:34] Inhibits Nh4.} 16. Nd3 $36 {[%emt 0:00:05][%mdl 2048] Black is under pressure.} Ng6 {[%emt 0:00:51]} 17. Qd2 {[%emt 0:12:30]} Be4 {[%emt 0:05:56]} 18. Qe3 {[%emt 0:00:28]} Rf8 {[%emt 0:06:13]} (18... O-O $11) 19. Nd2 $14 {[%emt 0:00:27]} Bxd3 {[%emt 0:08:57]} 20. Bxd3 {[%emt 0:00:11]} Nf4 {[%emt 0:00:05]} 21. Bf1 {[%emt 0:01:52][%cal Bd3f1,Bf1h3,Bh3g4][%mdl 32]} O-O-O {[%emt 0:02:24]} 22. g3 {[%emt 0:04:38]} Rg8 {[%emt 0:11:06]} 23. Kh1 {[%emt 0:05:33]} (23. gxf4 $2 {is the wrong capture.} gxf4+ $19) (23. Qf3 $18) 23... Nh5 {[%emt 0:00:43]} 24. Qxe6 {[%emt 0:01:33]} ({Better is} 24. b4 $16) 24... Qxf2 $11 {[%emt 0:01:39]} 25. Re2 {[%emt 0:00:04]} (25. Qxh6 $2 {too greedy.} Rh8 26. Re6 Rxh6 $19) (25. Qe3 {simplifies} Qxe3 26. Rxe3 Nhf6 27. Rae1) 25... Qf6 {[%emt 0:04:58]} 26. Bh3 {[%emt 0:03:02]} Qg7 {[%emt 0:01:17]} (26... Qxe6 {simplifies} 27. Rxe6 g4 28. Bf1 Nhf6) 27. Rf1 {[%emt 0:01:55][%cal Ba1f1,Bf1f2,Bf2f3][%mdl 32] [#] aiming for Rf7.} Rgf8 {[%emt 0:04:20][%mdl 8192] Prevents Rf7. White leaves nothing to chance now.} (27... g4 $1 $11 28. Rf7 Qg6 29. Qxg6 Rxg6) 28. Ref2 $18 {[%emt 0:02:16]} Rxf2 {[%emt 0:11:20]} (28... g4 {might work better.}) 29. Rxf2 {[%emt 0:00:07] Rf7 would be deadly.} g4 {[%emt 0:02:00]} 30. Bxg4 {[%emt 0:01:29]} Nxg3+ {[%emt 0:00:29]} 31. hxg3 {[%emt 0:00:30]} h5 {[%emt 0:00:03]} 32. Bh3 {[%emt 0:00:44]} Qxg3 {[%emt 0:00:10]} 33. Rf3 {[%emt 0:00:30]} Qg5 {[%emt 0:00:22]} 34. Qe3 $2 {[%emt 0:00:35]} (34. Qd6) 34... Qg7 {[%emt 0:00:23] Prevents Rf7.} (34... Qxe3 35. Rxe3 Kb8) 35. Qe5 {[%emt 0:01:42]} Qh7 {[%emt 0:00:13]} (35... Rg8 36. Qh2 (36. Qxh5 $2 Qg1#) 36... Kd8) 36. Qf5 {[%emt 0:00:30]} Qh6 {[%emt 0:00:07]} 37. Qf4 {[%emt 0:00:13]} Qh7 {[%emt 0:01:06]} (37... Qxf4 38. Rxf4 Re8) 38. Bf5 {[%emt 0:00:23]} Qg7 {[%emt 0:00:15]} 39. Rg3 {[%emt 0:01:12]} Qe7 {[%emt 0:00:07]} 40. Re3 {[%emt 0:00:00]} Qg7 {[%emt 0:00:00]} 41. Rg3 {[%emt 0:04:30]} Qe7 {[%emt 0:01:13]} 42. Qe5 {[%emt 0:01:56] Against a3} (42. Nf3 $142 {Threatens to win with Ne5.} Rf8 43. Ne5 Rxf5 44. Qxf5) 42... Qh4+ {[%emt 0:00:32]} (42... Qxe5 $18 43. dxe5 Rf8) 43. Kg2 {[%emt 0:00:13]} a3 {[%emt 0:01:17]} 44. bxa3 {[%emt 0:02:33]} c5 {[%emt 0:00:09]} 45. Nf3 {[%emt 0:00:15]} (45. Rg7 $142 cxd4 46. Qd6 Qg4+ 47. Bxg4 hxg4 48. Nb3 b6 49. Qc6+ Kb8 50. Nxd4) 45... Qe4 {[%emt 0:00:27] White is clearly winning.} 46. Bxe4 {[%emt 0:00:32]} Nxe5 {[%emt 0:00:04]} 47. Bf5+ {[%emt 0:00:06]} Nd7 {[%emt 0:00:05]} 48. Ne5 {[%emt 0:00:04]} Kc7 {[%emt 0:00:21]} 49. Bxd7 {[%emt 0:00:24] [#] Black must now prevent Rg7.} Ra8 {[%emt 0:00:04]} 50. a4 {[%emt 0:00:05] Weighted Error Value: White=0.71/Black=0.67} 1-0

[Event "Polish Youth B18 Championship 2023"]
[Site "Jastrzebia Gora"]
[Date "2023.03.17"]
[Round "7.7"]
[White "Taranowicz, Michal"]
[Black "Biesiadecki, Adam"]
[Result "1-0"]
[ECO "B31"]
[WhiteElo "1900"]
[BlackElo "1761"]
[Annotator "TA"]
[PlyCount "45"]
[EventDate "2023.03.11"]
[EventType "swiss"]
[EventCountry "POL"]
[SourceTitle "playchess.com"]
[Source "ChessBase"]
[SourceQuality "1"]
[TimeControl "40/5400+30:1800+30"]

{[%evp 13,45,19,19,15,18,10,103,111,103,101,170,156,160,139,157,143,316,309,307,269,279,274,297,234,475,356,475,473,641,622,742,715,731,721]} 1. e4 {[%emt 0:01:06]} c5 {[%emt 0:00:08]} 2. Nf3 {[%emt 0:00:05]} Nc6 {[%emt 0:00:05]} 3. Bb5 {[%emt 0:00:04]} g6 {[%emt 0:00:07]} 4. Bxc6 {[%emt 0:00:06]} dxc6 {[%emt 0:00:10]} 5. d3 {[%emt 0:00:05]} Bg7 {[%emt 0:00:09]} 6. h3 {[%emt 0:00:04]} e5 {[%emt 0:00:08]} 7. Be3 {[%emt 0:00:06]} b6 {[%emt 0:00:06]} 8. a4 {[%emt 0:00:05][%cal Oa4a5] B31: Sicilian: 2...Nc6 3 Bb5 g6.} a5 {[%emt 0:00:21]} 9. Na3 {[%emt 0:00:05]} h6 {[%emt 0:01:06]} (9... Qc7 $11 {keeps the balance.}) 10. Nc4 $16 {[%emt 0:00:28] White is better.} Qc7 {[%emt 0:00:20]} 11. b4 {[%emt 0:00:51]} axb4 {[%emt 0:14:50] [#]} (11... cxb4 $16 12. Bxb6 Qe7) 12. a5 $1 $18 {[%emt 0:00:15][%mdl 576] Deflection} bxa5 {[%emt 0:12:00]} 13. Bxc5 {[%emt 0:00:07] [#] Nd6+ would be deadly.} Bf8 $146 {[%emt 0:20:41] Repels Nd6+} ({Predecessor:} 13... Ne7 14. Bb6 Qb8 15. Rxa5 Rxa5 16. Bxa5 O-O 17. Qb1 Be6 18. Nfd2 c5 19. O-O Rc8 {1-0 Player,E (2172)-Djordjevic,D (2166) Titled Tuesday intern op 22nd Dec blitz 2020 (11)}) 14. Bb6 {[%emt 0:03:11][%cal Bc5b6,Bb6e3,Be3f4][%mdl 32] White is much more active.} Qb8 {[%emt 0:00:36]} (14... Qb7 $16 15. Nfxe5 (15. Bxa5 f6 $16) 15... a4) 15. Nfxe5 {[%emt 0:01:47][%cal Bf3e5,Be5c6,Bc6a5][%mdl 32]} ({Weaker is} 15. Rxa5 Rxa5 16. Bxa5 f6 $16) 15... a4 {[%emt 0:05:45]} 16. Nxc6 {[%emt 0:04:13]} ({But not} 16. Qf3 $6 Be6 17. Nxc6 Qc8 $18) 16... Qb7 {[%emt 0:00:32]} 17. N6a5 {[%emt 0:02:45] A dynamic duo of knights.} Qd7 {[%emt 0:00:34]} 18. Be3 {[%emt 0:02:38] [#] Strongly threatening Nb6.} Rb8 {[%emt 0:01:51]} (18... Qb5 {might work better.}) 19. O-O {[%emt 0:01:08] Threatens to win with Bf4.} Bg7 {[%emt 0:01:13]} 20. Bf4 {[%emt 0:00:59] White is clearly winning.} Ra8 {[%emt 0:00:34]} 21. Nb6 {[%emt 0:02:16][%csl LRa4,LRa8,LRd7]} Rxa5 {[%emt 0:01:06]} 22. Nxd7 {[%emt 0:00:19]} Bxd7 {[%emt 0:00:02]} 23. d4 {[%emt 0:02:39] White took control after the opening.   Weighted Error Value: White=0.20 (precise) /Black=0.68} 1-0